fUST/lending_fUST_20250805
["ID","MTS","AMOUNT","RATE_DAILY","PERIOD"]
[377304665,1754326976019,107.47817859,0.00030073,2]
[377304666,1754326976042,4892.52182141,0.00030073,2]
[377304667,1754326991660,5000.0,0.00030073,2]
[377304668,1754327007403,5000.0,0.00030073,2]
[377304669,1754327023118,5000.0,0.00030073,2]
[377304670,1754327025656,107.47817859,0.00029135,2]
[377304671,1754327025679,58.94487931,0.00029135,2]
[377304672,1754327038444,5000.0,0.00030073,2]
[377304673,1754327044517,251.75196894,0.00030003,2]
[377304674,1754327054431,5000.0,0.00030073,2]
[377304675,1754327069644,5000.0,0.00030073,2]
[377304676,1754327082117,1000.0,0.00029124,30]
[377304677,1754327085422,3689.30315175,0.00030073,2]
[377304678,1754327085444,1310.69684825,0.00030073,2]
[377304679,1754327098329,793.73303936,0.0003007,2]
[377304680,1754327100586,5000.0,0.00030073,2]
[377304681,1754327103216,1000.0,0.00025205,2]
[377304682,1754327109793,1382.1176744,0.00028192,2]
[377304683,1754327116281,5000.0,0.00030073,2]
[377304684,1754327127983,299.221615,0.00025246,2]
[377304685,1754327128309,299.221615,0.00025507,2]
[377304686,1754327128757,320.535202,0.0002859,2]
[377304687,1754327129169,377.5231823,0.00028591,2]
[377304688,1754327132633,4216.95082369,0.00030073,2]
[377304689,1754327132655,783.04917631,0.00030073,2]
[377304690,1754327134625,19216.95082369,0.000299,2]
[377304691,1754327134649,20000.0,0.000299,2]
[377304692,1754327134672,20000.0,0.000299,2]
[377304693,1754327134694,20000.0,0.000299,2]
[377304694,1754327134716,20000.0,0.000299,2]
[377304695,1754327134738,20000.0,0.000299,2]
[377304696,1754327134761,20000.0,0.000299,2]
[377304697,1754327134783,20000.0,0.000299,2]
[377304698,1754327134806,20000.0,0.000299,2]
[377304699,1754327134829,20000.0,0.000299,2]
[377304700,1754327134852,898.52094785,0.000299,2]
[377304701,1754327147788,5000.0,0.00030073,2]
[377304702,1754327150431,251.75196893,0.0003,2]
[377304703,1754327153848,261.70845254,0.0003,2]
[377304705,1754327166849,5000.0,0.00030073,2]
[377304706,1754327178098,186.456084,0.00029135,2]
[377304708,1754327182464,5000.0,0.00030073,2]
[377304709,1754327197892,3401.56254668,0.00030073,2]
[377304710,1754327197916,1598.43745332,0.00030073,2]
[377304711,1754327213298,5000.0,0.00030073,2]
[377304712,1754327229068,5000.0,0.00030073,2]
[377304713,1754327234441,8401.56254668,0.00030073,7]
[377304714,1754327234463,4245.31184975,0.00030073,7]
[377304715,1754327244769,5000.0,0.00030073,2]
[377304716,1754327249035,1064.424279,0.00029128,2]
[377304717,1754327253436,9690.26387125,0.00029128,2]
[377304718,1754327253459,10287.57095125,0.00029128,2]
[377304719,1754327259961,5000.0,0.00030073,2]
[377304720,1754327275172,4712.42904875,0.00030073,2]
[377304721,1754327275195,287.57095125,0.00030073,2]
[377304722,1754327286211,150.0,0.00025423,2]
[377304723,1754327291327,5000.0,0.00030073,2]
[377304724,1754327295633,152.46,0.00027858,15]
[377304725,1754327295928,152.46,0.00028158,15]
[377304726,1754327295993,152.46,0.00028058,15]
[377304727,1754327296214,152.52,0.00028358,15]
[377304728,1754327297799,152.46,0.00027758,15]
[377304729,1754327298094,152.46,0.00027658,15]
[377304730,1754327299038,152.46,0.00027558,15]
[377304731,1754327299708,152.46,0.00027958,15]
[377304732,1754327300260,152.46,0.00028258,15]
[377304733,1754327313919,5000.0,0.00030073,2]
[377304734,1754327315567,182.61176556,0.00023945,11]
[377304735,1754327318461,209.1890095,0.00029129,2]
[377304736,1754327322804,184.744248,0.0002913,120]
[377304737,1754327329645,5000.0,0.00030073,2]
[377304738,1754327344963,588.07,0.00028461,30]
[377304739,1754327345351,588.07,0.00028985,30]
[377304740,1754327345457,1622.28827369,0.00030073,2]
[377304741,1754327345638,3377.71172631,0.00030073,2]
[377304742,1754327345726,588.07,0.00029509,30]
[377304747,1754327351145,3553.07515964,0.00030073,2]
[377304748,1754327361378,5000.0,0.00030073,2]
[377304749,1754327377459,5000.0,0.00030073,2]
[377304750,1754327380188,250.0,0.00028716,2]
[377304751,1754327380217,4000.0,0.00030294,30]
[377304752,1754327392983,2231.14311405,0.00030073,2]
[377304753,1754327393005,2768.85688595,0.00030073,2]
[377304754,1754327408894,5000.0,0.00030073,2]
[377304755,1754327411505,2236.32953839,0.00028073,2]
[377304756,1754327424088,5000.0,0.00030073,2]
[377304757,1754327430998,517.74882,0.00025246,2]
[377304758,1754327431391,470.66854365,0.00025507,2]
[377304762,1754327431727,235.33427182,0.00028617,2]
[377304821,1754327432288,-206.1210399,0.000301,2]
[377304823,1754327432298,-800.0,0.00030123,2]
[377304825,1754327432309,-800.0,0.00030126,2]
[377304827,1754327432318,-1038.88273041,0.00030133,2]
[377304830,1754327432342,-561.11726959,0.00030133,2]
[377304832,1754327432352,-164.452634,0.00030137,2]
[377304834,1754327432362,-6.25984104,0.00030137,2]
[377304839,1754327432397,-291.07073514,0.00030137,2]
[377304841,1754327432407,-166.682,0.00030137,25]
[377304843,1754327432416,-221.28278248,0.00030137,30]
[377304845,1754327432428,-170.76721752,0.00030137,30]
[377304847,1754327432437,-300.0,0.00030147,2]
[377304849,1754327432446,-380.21969975,0.00030147,2]
[377304907,1754327436624,200.0,0.000294,120]
[377304933,1754327438135,-19.78030025,0.00030147,2]
[377304935,1754327438145,-41779.06703379,0.00030148,2]
[377304937,1754327438155,-375.16,0.00030149,10]
[377304939,1754327438165,-312.64,0.00030149,10]
[377304941,1754327438174,-260.53,0.00030149,10]
[377304943,1754327438183,-217.11,0.00030149,10]
[377304945,1754327438193,-659.0,0.0003015,2]
[377304947,1754327438203,-170.08,0.00030153,3]
[377304949,1754327438212,-510.27,0.00030153,3]
[377304951,1754327438222,-47155.877381,0.00030153,2]
[377304953,1754327438231,-500.0,0.00030158,2]
[377304955,1754327438241,-367.16349644,0.00030158,2]
[377304956,1754327438250,-500.0,0.00030161,2]
[377304958,1754327438259,-340.17,0.00030162,3]
[377304960,1754327438268,-31362.0781199,0.00030163,2]
[377304963,1754327438279,-151.0,0.00030164,2]
[377304965,1754327438289,-282935.264286,0.00030172,2]
[377304968,1754327438299,-500.0,0.00030173,5]
[377304971,1754327438308,-524.72311685,0.00030173,5]
[377304973,1754327438318,-1020.08492256,0.00030173,2]
[377304976,1754327438328,-3013.213066,0.00030181,2]
[377304978,1754327438337,-370000.0,0.00030182,2]
[377304980,1754327438346,-306.0,0.000302,30]
[377304982,1754327438355,-1157.1921196,0.000302,30]
[377304984,1754327438365,-153.0,0.000302,30]
[377304986,1754327438376,-500.0,0.00030273,5]
[377304988,1754327438386,-500.0,0.00030273,5]
[377304990,1754327438397,-400.0,0.00030273,5]
[377304992,1754327438407,-501.70751776,0.00030273,5]
[377304994,1754327438416,-500.0,0.00030273,5]
[377304996,1754327438427,-500.0,0.00030273,5]
[377304998,1754327438436,-500.0,0.00030273,5]
[377305000,1754327438446,-500.0,0.00030273,5]
[377305003,1754327438455,-500.0,0.00030273,5]
[377305004,1754327438465,-528.29956366,0.00030273,5]
[377305007,1754327438475,-500.0,0.00030292,30]
[377305009,1754327438485,-1000.0,0.00030293,2]
[377305011,1754327438494,-1000.0,0.00030293,2]
[377305012,1754327438505,-1000.0,0.00030293,2]
[377305015,1754327438514,-1000.0,0.00030293,2]
[377305017,1754327438523,-1000.0,0.00030293,2]
[377305019,1754327438533,-1000.0,0.00030293,2]
[377305021,1754327438542,-1000.0,0.00030293,2]
[377305023,1754327438552,-1000.0,0.00030293,2]
[377305025,1754327438561,-1000.0,0.00030293,2]
[377305027,1754327438571,-1000.0,0.00030293,2]
[377305029,1754327438580,-1074.8,0.00030293,2]
[377305031,1754327438594,-500.0,0.00030293,15]
[377305032,1754327438603,-500.0,0.00030293,15]
[377305034,1754327438612,-336.27,0.00030293,2]
[377305036,1754327438622,-372691.55751482,0.00030294,20]
[377305039,1754327438634,-490634.73074479,0.00030294,20]
[377305041,1754327438643,-600.12587412,0.00030294,5]
[377305043,1754327438653,-33027.90564752,0.00030294,7]
[377305045,1754327438663,-1589.0,0.00030294,3]
[377305047,1754327438674,-11064.7477987,0.00030294,7]
[377305049,1754327438683,-1780.97771768,0.00030294,3]
[377305050,1754327438693,-6507.02245374,0.00030294,2]
[377305052,1754327438702,-439.67507032,0.00030294,2]
[377305053,1754327438712,-3676.9952824,0.00030294,2]
[377305054,1754327438724,-10646.23595603,0.00030294,2]
[377305055,1754327438735,-648.86598571,0.00030294,2]
[377305056,1754327438745,-2920.0,0.00030294,2]
[377305057,1754327438755,-383.50640859,0.00030294,2]
[377305058,1754327438765,-200.73767632,0.00030294,2]
[377305060,1754327438777,-3136.11205484,0.00030294,2]
[377305062,1754327438786,-153.0,0.000303,30]
[377305064,1754327438796,-153.0,0.000303,30]
[377305065,1754327438807,-2070.94327486,0.0003031,10]
[377305066,1754327438828,-928.02672414,0.0003031,10]
[377305067,1754327438838,-1224.22807273,0.00030367,2]
[377305068,1754327438848,-392.05,0.00030377,30]
[377305069,1754327438857,-1689.81054931,0.00030429,120]
[377305070,1754327438868,-500.0,0.00030435,2]
[377305071,1754327438877,-392.05,0.0003068,30]
[377305072,1754327438887,-160.0,0.0003072,7]
[377305073,1754327438897,-325.0,0.0003072,7]
[377305074,1754327438907,-265.38448471,0.00030776,2]
[377305075,1754327438916,-500.0,0.00030821,5]
[377305076,1754327438926,-300.13920376,0.00030821,5]
[377305077,1754327438936,-486.27,0.00030877,30]
[377305078,1754327438946,-4530.49642069,0.000309,23]
[377305079,1754327438955,-3499.2,0.000309,4]
[377305080,1754327438965,-392.05,0.00030984,30]
[377305081,1754327438974,-200.0,0.00031179,120]
[377305082,1754327438984,-392.05,0.00031288,30]
[377305083,1754327438994,-151.0,0.00031369,2]
[377305084,1754327439005,-151.0,0.00031369,2]
[377305085,1754327439015,-151.0,0.00031369,2]
[377305086,1754327439027,-151.0,0.00031369,2]
[377305087,1754327439039,-151.0,0.00031369,2]
[377305088,1754327439049,-151.0,0.00031369,2]
[377305089,1754327439060,-151.0,0.00031369,2]
[377305090,1754327439069,-151.0,0.00031369,2]
[377305091,1754327439079,-151.0,0.00031369,2]
[377305092,1754327439089,-151.0,0.00031369,2]
[377305093,1754327439099,-151.0,0.00031369,2]
[377305094,1754327439108,-151.0,0.00031369,2]
[377305095,1754327439117,-151.0,0.00031369,2]
[377305096,1754327439127,-151.0,0.00031369,2]
[377305097,1754327439136,-151.0,0.00031369,2]
[377305098,1754327439145,-151.0,0.00031369,2]
[377305099,1754327439154,-151.0,0.00031369,2]
[377305100,1754327439163,-151.0,0.00031369,2]
[377305101,1754327439173,-151.0,0.00031369,2]
[377305102,1754327439183,-151.0,0.00031369,2]
[377305103,1754327439192,-151.0,0.00031369,2]
[377305104,1754327439202,-151.0,0.00031369,2]
[377305105,1754327439211,-151.0,0.00031369,2]
[377305106,1754327439221,-151.0,0.00031369,2]
[377305107,1754327439231,-151.0,0.00031369,2]
[377305108,1754327439240,-151.0,0.00031369,2]
[377305109,1754327439249,-151.0,0.00031369,2]
[377305110,1754327439259,-151.0,0.00031369,2]
[377305111,1754327439269,-151.0,0.00031369,2]
[377305112,1754327439280,-151.0,0.00031369,2]
[377305113,1754327439289,-151.0,0.00031369,2]
[377305114,1754327439299,-151.0,0.00031369,2]
[377305115,1754327439309,-151.0,0.00031369,2]
[377305116,1754327439319,-151.0,0.00031369,2]
[377305117,1754327439329,-151.0,0.00031369,2]
[377305118,1754327439338,-151.0,0.00031369,2]
[377305119,1754327439348,-151.0,0.00031369,2]
[377305120,1754327439358,-151.0,0.00031369,2]
[377305121,1754327439367,-151.0,0.00031369,2]
[377305122,1754327439377,-151.0,0.00031369,2]
[377305123,1754327439387,-151.0,0.00031369,2]
[377305124,1754327439397,-151.0,0.00031369,2]
[377305125,1754327439406,-151.0,0.00031369,2]
[377305126,1754327439415,-151.0,0.00031369,2]
[377305127,1754327439424,-151.0,0.00031369,2]
[377305128,1754327439433,-151.0,0.00031369,2]
[377305129,1754327439443,-151.0,0.00031369,2]
[377305130,1754327439452,-151.0,0.00031369,2]
[377305131,1754327439462,-151.0,0.00031369,2]
[377305132,1754327439471,-151.0,0.00031369,2]
[377305133,1754327439481,-151.0,0.00031369,2]
[377305134,1754327439491,-151.0,0.00031369,2]
[377305135,1754327439501,-151.0,0.00031369,2]
[377305136,1754327439511,-151.0,0.00031369,2]
[377305137,1754327439520,-300.0,0.00031369,2]
[377305138,1754327439532,-278.72920567,0.00031369,2]
[377305139,1754327439542,-300.0,0.00031369,2]
[377305140,1754327439552,-300.0,0.00031369,2]
[377305141,1754327439562,-300.0,0.00031369,2]
[377305142,1754327439572,-300.0,0.00031369,2]
[377305143,1754327439582,-300.0,0.00031369,2]
[377305144,1754327439594,-300.0,0.00031369,2]
[377305145,1754327439603,-500.0,0.0003142,5]
[377305146,1754327439613,-500.0,0.0003142,5]
[377305147,1754327439623,-3553.07515962,0.00031437,2]
[377305148,1754327439633,-153.0,0.00031476,2]
[377305149,1754327439642,-153.0,0.00031476,2]
[377305150,1754327439652,-153.0,0.00031476,2]
[377305151,1754327439663,-153.0,0.00031476,2]
[377305152,1754327439673,-153.0,0.00031476,2]
[377305153,1754327439683,-153.0,0.00031476,2]
[377305154,1754327439693,-153.0,0.00031476,2]
[377305155,1754327439703,-153.0,0.00031476,2]
[377305157,1754327439713,-153.0,0.00031476,2]
[377305158,1754327439723,-153.0,0.00031476,2]
[377305159,1754327439732,-153.0,0.00031476,2]
[377305160,1754327439743,-324.19,0.00031482,30]
[377305161,1754327439754,-153.0,0.00031498,2]
[377305162,1754327439766,-153.0,0.00031498,2]
[377305163,1754327439779,-153.0,0.00031498,2]
[377305164,1754327439789,-340.16,0.00031523,3]
[377305165,1754327439799,-680.34,0.00031532,3]
[377305166,1754327439809,-392.05,0.00031592,30]
[377305167,1754327439818,-392.05,0.00031896,30]
[377305168,1754327439828,-1000.0,0.00031968,5]
[377305169,1754327439837,-1000.0,0.00031968,5]
[377305170,1754327439847,-4819.17561505,0.00032,7]
[377305171,1754327439856,-392.05,0.00032199,30]
[377305172,1754327439866,-200.0,0.00032258,120]
[377305174,1754327439876,-5000.0,0.00032293,4]
[377305176,1754327439885,-200.0,0.00032451,120]
[377305178,1754327439896,-560.0,0.00032487,2]
[377305180,1754327439905,-392.05,0.00032503,30]
[377305182,1754327439915,-1500.0,0.00032516,5]
[377305184,1754327439925,-1500.0,0.00032516,5]
[377305185,1754327439935,-200.0,0.00032517,120]
[377305187,1754327439945,-154.0421,0.00032583,4]
[377305188,1754327439954,-2240.0,0.00032609,3]
[377305190,1754327439963,-200.0,0.00032716,120]
[377305192,1754327439973,-3883.56323806,0.00032776,2]
[377305194,1754327439983,-3553.07515962,0.000328,2]
[377305196,1754327439993,-160.0,0.00032838,2]
[377305198,1754327440003,-215.16777298,0.00032838,2]
[377305200,1754327440013,-461.05335821,0.0003286,2]
[377305202,1754327440022,-160.0,0.0003286,2]
[377305204,1754327440033,-231.67098287,0.0003286,2]
[377305206,1754327440042,-160.0,0.0003286,2]
[377305208,1754327440052,-216.36857094,0.0003286,2]
[377305210,1754327440062,-200.0,0.00032865,120]
[377305211,1754327440071,-150.0,0.00032873,3]
[377305213,1754327440081,-155.0,0.00032875,2]
[377305215,1754327440090,-460.0,0.00032876,2]
[377305216,1754327440100,-460.0,0.00032876,2]
[377305218,1754327440110,-506.32050262,0.00032876,2]
[377305220,1754327440119,-460.0,0.00032876,2]
[377305222,1754327440129,-533.88433263,0.00032876,2]
[377305224,1754327440138,-460.0,0.00032876,2]
[377305226,1754327440148,-499.24235485,0.00032876,2]
[377305228,1754327440157,-460.0,0.00032876,2]
[377305230,1754327440166,-460.0,0.00032876,2]
[377305232,1754327440175,-460.0,0.00032876,2]
[377305234,1754327440185,-460.0,0.00032876,2]
[377305236,1754327440195,-460.0,0.00032876,2]
[377305238,1754327440205,-460.0,0.00032876,2]
[377305240,1754327440214,-460.0,0.00032876,2]
[377305242,1754327440223,-460.0,0.00032876,2]
[377305244,1754327440232,-460.0,0.00032876,2]
[377305246,1754327440241,-460.0,0.00032876,2]
[377305247,1754327440251,-460.0,0.00032876,2]
[377305250,1754327440261,-460.0,0.00032876,2]
[377305251,1754327440271,-460.0,0.00032876,2]
[377305254,1754327440282,-460.0,0.00032876,2]
[377305255,1754327440291,-284.48739302,0.00032876,2]
[377305258,1754327440302,-460.0,0.00032876,2]
[377305260,1754327440311,-697.63,0.00032876,2]
[377305262,1754327440321,-460.0,0.00032876,2]
[377305264,1754327440331,-460.0,0.00032876,2]
[377305278,1754327440340,-460.0,0.00032876,2]
[377305280,1754327440467,-359.66342351,0.00032876,2]
[377305282,1754327440477,-460.0,0.00032876,2]
[377305284,1754327440489,-229.02664768,0.00032876,2]
[377305287,1754327440503,-230.97335232,0.00032876,2]
[377305289,1754327440512,-336.97665192,0.00032876,2]
[377305291,1754327440525,-123.02334808,0.00032876,2]
[377305293,1754327440535,-460.0,0.00032876,2]
[377305295,1754327440544,-460.0,0.00032876,2]
[377305297,1754327440554,-473.05,0.00032876,2]
[377305299,1754327440564,-360.16825829,0.00032876,2]
[377305301,1754327440573,-460.0,0.00032876,2]
[377305302,1754327440584,-460.0,0.00032876,2]
[377305305,1754327440595,-460.0,0.00032876,2]
[377305307,1754327440606,-454.25839363,0.00032876,2]
[377305309,1754327440618,-5.74160637,0.00032876,2]
[377305311,1754327440627,-460.0,0.00032876,2]
[377305313,1754327440636,-460.0,0.00032876,2]
[377305315,1754327440646,-460.0,0.00032876,2]
[377305316,1754327440655,-489.3,0.00032876,2]
[377305318,1754327440667,-460.0,0.00032876,2]
[377305320,1754327440676,-180.75,0.00032876,2]
[377305322,1754327440685,-460.0,0.00032876,2]
[377305324,1754327440695,-460.0,0.00032876,2]
[377305326,1754327440704,-460.0,0.00032876,2]
[377305328,1754327440714,-460.0,0.00032876,2]
[377305330,1754327440723,-344.53,0.00032876,2]
[377305332,1754327440733,-241.9199402,0.00032876,2]
[377305383,1754327441558,634.98643152,0.00030059,2]
[377305399,1754327441722,634.98643148,0.00030069,2]
[377305451,1754327442211,2501.08907719,0.00030073,2]
[377305454,1754327442233,2498.91092281,0.00030073,2]
[377305578,1754327443298,-634.98643148,0.0003008,2]
[377305580,1754327443308,-500.0,0.00030147,2]
[377305582,1754327443318,-214.59024934,0.00030147,2]
[377305755,1754327446304,-634.98643148,0.0003009,2]
[377305756,1754327446314,-315.57368799,0.00030147,2]
[377305757,1754327446324,-293.05291139,0.00030147,2]
[377305758,1754327446334,-512.22683062,0.00030147,2]
[377305759,1754327446343,-500.0,0.00030147,2]
[377305760,1754327446353,-640.05019016,0.00030147,2]
[377305761,1754327446362,-500.0,0.00030147,2]
[377305762,1754327446372,-500.0,0.00030147,2]
[377305763,1754327446382,-500.0,0.00030147,2]
[377305764,1754327446391,-500.0,0.00030147,2]
[377305765,1754327446400,-441.3890108,0.00030147,2]
[377305766,1754327446410,-500.0,0.00030147,2]
[377305767,1754327446419,-640.05019016,0.00030147,2]
[377305768,1754327446428,-500.0,0.00030147,2]
[377305769,1754327446438,-500.0,0.00030147,2]
[377305770,1754327446447,-500.0,0.00030147,2]
[377305771,1754327446456,-500.0,0.00030147,2]
[377305772,1754327446466,-500.0,0.00030147,2]
[377305774,1754327446477,-640.05019016,0.00030147,2]
[377305776,1754327446486,-500.0,0.00030147,2]
[377305777,1754327446495,-500.0,0.00030147,2]
[377305778,1754327446505,-500.0,0.00030147,2]
[377305779,1754327446514,-500.0,0.00030147,2]
[377305781,1754327446523,-640.05019016,0.00030147,2]
[377305782,1754327446534,-500.0,0.00030147,2]
[377305783,1754327446544,-500.0,0.00030147,2]
[377305784,1754327446553,-500.0,0.00030147,2]
[377305785,1754327446563,-500.0,0.00030147,2]
[377305786,1754327446572,-640.05019016,0.00030147,2]
[377305787,1754327446582,-500.0,0.00030147,2]
[377305788,1754327446595,-500.0,0.00030147,2]
[377305789,1754327446605,-500.0,0.00030147,2]
[377305790,1754327446615,-500.0,0.00030147,2]
[377305791,1754327446625,-640.05019016,0.00030147,2]
[377305792,1754327446637,-500.0,0.00030147,2]
[377305793,1754327446646,-500.0,0.00030147,2]
[377305794,1754327446656,-500.0,0.00030147,2]
[377305795,1754327446666,-500.0,0.00030147,2]
[377305796,1754327446676,-640.05019016,0.00030147,2]
[377305797,1754327446686,-616.61882582,0.00030147,2]
[377305798,1754327446695,-500.0,0.00030147,2]
[377305799,1754327446705,-500.0,0.00030147,2]
[377305800,1754327446714,-500.0,0.00030147,2]
[377305801,1754327446726,-500.0,0.00030147,2]
[377305802,1754327446735,-269.80097078,0.00030147,2]
[377306487,1754327457238,5000.0,0.00030073,2]
[377306790,1754327471363,154.344705,0.00028597,20]
[377306791,1754327471662,154.344705,0.00028173,20]
[377306792,1754327473128,5000.0,0.00030073,2]
[377306793,1754327488933,5000.0,0.00030073,2]
[377306794,1754327500666,2192.39966719,0.00030053,2]
[377306795,1754327500691,20000.0,0.00030053,2]
[377306796,1754327500713,20000.0,0.00030053,2]
[377306797,1754327500736,20000.0,0.00030053,2]
[377306798,1754327500758,20000.0,0.00030053,2]
[377306799,1754327500780,20000.0,0.00030053,2]
[377306800,1754327500801,20000.0,0.00030053,2]
[377306801,1754327500824,20000.0,0.00030053,2]
[377306802,1754327500847,20000.0,0.00030053,2]
[377306803,1754327501002,20000.0,0.00030053,2]
[377306804,1754327501029,20000.0,0.00030053,2]
[377306805,1754327501052,20000.0,0.00030053,2]
[377306806,1754327501074,20000.0,0.00030053,2]
[377306807,1754327501101,20000.0,0.00030053,2]
[377306808,1754327501124,20000.0,0.00030053,2]
[377306809,1754327501145,10000.0,0.00030053,2]
[377306810,1754327501167,10000.0,0.00030053,2]
[377306811,1754327501189,10000.0,0.00030053,2]
[377306812,1754327501211,10000.0,0.00030053,2]
[377306813,1754327501232,10000.0,0.00030053,2]
[377306814,1754327501253,10000.0,0.00030053,2]
[377306815,1754327501275,10000.0,0.00030053,2]
[377306816,1754327501297,10000.0,0.00030053,2]
[377306817,1754327501319,7807.60033281,0.00030053,2]
[377306818,1754327501784,180.92,0.00030043,10]
[377306819,1754327504711,2011.47966719,0.00030073,2]
[377306820,1754327504734,2988.52033281,0.00030073,2]
[377306821,1754327521056,5000.0,0.00030073,2]
[377306822,1754327527188,154.331251,0.00028597,20]
[377306823,1754327530504,200.41,0.00029,2]
[377306824,1754327534451,156.504924,0.00028597,20]
[377306825,1754327536752,1500.23349219,0.00030073,2]
[377306826,1754327536773,3499.76650781,0.00030073,2]
[377306827,1754327548545,6500.23349219,0.00030073,7]
[377306828,1754327548572,10000.0,0.00030073,7]
[377306829,1754327548602,10000.0,0.00030073,7]
[377306830,1754327548633,10000.0,0.00030073,7]
[377306831,1754327548663,10000.0,0.00030073,7]
[377306832,1754327548692,5634.14429302,0.00030073,7]
[377306833,1754327548955,154.331251,0.00030006,30]
[377306834,1754327553069,4211.52445598,0.00030073,2]
[377306835,1754327553100,788.47554402,0.00030073,2]
[377306836,1754327561170,5000.0,0.00030073,2]
[377306837,1754327578133,5000.0,0.0003,2]
[377306838,1754327591845,32690.07858358,0.00029973,2]
[377306839,1754327593685,5000.0,0.0003,2]
[377306840,1754327609202,5000.0,0.0003,2]
[377306841,1754327624108,5000.0,0.0003,2]
[377306842,1754327628381,163.0,0.00023945,11]
[377306844,1754327639112,1078.46467325,0.0003,2]
[377306845,1754327671005,203.46652824,0.00029973,2]
[377306846,1754327677093,154.71,0.00027539,15]
[377306847,1754327677134,154.71,0.00027639,15]
[377306848,1754327677220,154.71,0.00027739,15]
[377306849,1754327677252,154.71,0.00027839,15]
[377306850,1754327677455,154.71,0.00028039,15]
[377306851,1754327677522,154.71,0.00028139,15]
[377306852,1754327677582,154.71,0.00028239,15]
[377306853,1754327677763,154.71,0.00028339,15]
[377306854,1754327677875,154.71,0.00028539,15]
[377306855,1754327678074,154.71,0.00028639,15]
[377306856,1754327678383,154.71,0.00028939,15]
[377306857,1754327678673,154.71,0.00029039,15]
[377306858,1754327679008,154.71,0.00029139,15]
[377306859,1754327679640,154.71,0.00029339,15]
[377306860,1754327680087,154.71,0.00029439,15]
[377306861,1754327680118,154.71,0.00029539,15]
[377306862,1754327680146,154.71,0.00029639,15]
[377306863,1754327680219,154.91569107,0.00029839,15]
[377306864,1754327680307,154.71,0.00027939,15]
[377306865,1754327680375,154.71,0.00029239,15]
[377306866,1754327681192,154.71,0.00028439,15]
[377306867,1754327681562,154.71,0.00028839,15]
[377306868,1754327681756,154.71,0.00028739,15]
[377306869,1754327682063,154.71,0.00029739,15]
[377306870,1754327703177,4000.0,0.00023062,2]
[377306871,1754327703206,4003.0,0.00023062,2]
[377306872,1754327714102,2613.40508992,0.00028194,2]
[377306873,1754327715424,24900.0,0.00029048,2]
[377306874,1754327733103,421.587568,0.00025246,2]
[377306875,1754327733676,311.37929354,0.00025507,2]
[377306876,1754327762570,5000.0,0.0003,2]
[377306877,1754327769627,212.1712823,0.00029047,2]
[377306878,1754327770047,422.81,0.00028317,30]
[377306879,1754327770489,422.81,0.00028863,30]
[377306880,1754327770928,422.81,0.00029409,30]
[377306881,1754327771320,208.70737129,0.00029955,30]
[377306882,1754327771344,214.10262871,0.00029955,30]
[377306883,1754327773161,158.74660787,0.00029952,2]